[Event "15th Lazio Festival 2022"]
[Site "Rome"]
[Date "2022.01.03"]
[Round "3.4"]
[White "Maione, Melissa"]
[Black "Agostini, Maurizio"]
[Result "1-0"]
[ECO "B38"]
[WhiteElo "1866"]
[BlackElo "1972"]
[Annotator "ChessBase"]
[PlyCount "123"]
[EventDate "2022.01.02"]
[EventType "swiss"]
[EventCountry "ITA"]
[SourceTitle "playchess.com"]
[Source "ChessBase"]
[SourceQuality "1"]
[TimeControl "5400+30"]

1. e4 {[%emt 0:00:03]} c5 {[%emt 0:00:03]} 2. Nf3 {[%emt 0:00:06]} g6 {[%emt 0:00:03]} 3. d4 {[%emt 0:00:07]} cxd4 {[%emt 0:00:04]} 4. Nxd4 {[%emt 0:00:10]} Bg7 {[%emt 0:00:05]} 5. c4 {[%emt 0:00:16]} Nc6 {[%emt 0:00:07]} 6. Be3 {[%emt 0:00:08]} d6 {[%emt 0:00:31]} 7. Nc3 {[%emt 0:00:30]} Nf6 {[%emt 0:00:04]} 8. Be2 {[%emt 0:00:29]} O-O {[%emt 0:00:09]} 9. O-O {[%emt 0:01:00]} Bd7 {[%emt 0:00:03]} 10. Qd2 {[%emt 0:00:45]} Nxd4 {[%emt 0:00:20]} 11. Bxd4 {[%emt 0:00:28]} Bc6 {[%emt 0:00:08]} 12. f3 {[%emt 0:00:22]} a5 {[%emt 0:00:29]} 13. b3 {[%emt 0:00:43]} Nd7 {[%emt 0:00:06]} 14. Be3 {[%emt 0:00:41]} Nc5 {[%emt 0:00:57]} 15. Rab1 {[%emt 0:03:55]} Qb6 {[%emt 0:07:21]} 16. Rfc1 {[%emt 0:01:34]} Qb4 {[%emt 0:11:06]} 17. Rc2 {[%emt 0:05:41]} Rfe8 {[%emt 0:05:01]} 18. Qc1 {[%emt 0:03:56]} Qb6 {[%emt 0:10:08]} 19. a3 {[%emt 0:03:32]} Qc7 {[%emt 0:05:06]} 20. Qe1 {[%emt 0:04:20]} a4 {[%emt 0:13:23]} 21. b4 {[%emt 0:01:59]} Nb3 {[%emt 0:00:17]} 22. Qf2 {[%emt 0:00:28]} e5 {[%emt 0:04:57]} 23. b5 {[%emt 0:02:58]} Nd4 {[%emt 0:02:48]} 24. Rcc1 {[%emt 0:01:20]} Bd7 {[%emt 0:01:38]} 25. Bd1 {[%emt 0:01:42]} Be6 {[%emt 0:38:06]} 26. Rb4 {[%emt 0:10:02]} Nb3 {[%emt 0:00:00]} 27. Bxb3 {[%emt 0:01:47]} axb3 {[%emt 0:00:00]} 28. Nd5 {[%emt 0:01:02]} Qa5 {[%emt 0:00:00]} 29. Rxb3 {[%emt 0:00:34]} Bxd5 {[%emt 0:00:00]} 30. cxd5 {[%emt 0:00:44]} Rec8 {[%emt 0:00:00]} 31. Qb2 {[%emt 0:01:52]} Rc4 {[%emt 0:00:00]} 32. Qd2 {[%emt 0:03:36]} Qa4 {[%emt 0:01:45]} 33. Rxc4 {[%emt 0:01:17]} Qxb3 {[%emt 0:00:53]} 34. Qc3 {[%emt 0:01:23]} Qxb5 {[%emt 0:00:50]} 35. Rc8+ {[%emt 0:00:22]} Rxc8 {[%emt 0:00:53]} 36. Qxc8+ {[%emt 0:00:05]} Bf8 {[%emt 0:00:02]} 37. h3 {[%emt 0:03:55]} f6 {[%emt 0:00:55]} 38. Kh2 {[%emt 0:00:44]} Kf7 {[%emt 0:00:32]} 39. Qe6+ {[%emt 0:01:27]} Kg7 {[%emt 0:00:03]} 40. Bd2 {[%emt 0:01:13]} Qb6 {[%emt 0:01:02]} 41. Qe8 {[%emt 0:01:49]} Qc7 {[%emt 0:00:33]} 42. Bh6+ {[%emt 0:00:37]} Kxh6 {[%emt 0:00:02]} 43. Qxf8+ {[%emt 0:00:06]} Kg5 {[%emt 0:00:41]} 44. h4+ {[%emt 0:01:03]} Kf4 {[%emt 0:00:45]} 45. Qh6+ {[%emt 0:00:09]} g5 {[%emt 0:00:02]} 46. Qxf6+ {[%emt 0:00:06]} Ke3 {[%emt 0:00:03]} 47. Qxg5+ {[%emt 0:00:08]} Ke2 {[%emt 0:00:49]} 48. Qh5 {[%emt 0:00:08]} Ke3 {[%emt 0:01:08]} 49. Qh6+ {[%emt 0:01:03]} Ke2 {[%emt 0:00:09]} 50. a4 {[%emt 0:01:57]} Kd3 {[%emt 0:00:46]} 51. h5 {[%emt 0:00:39]} Qe7 {[%emt 0:00:30]} 52. Kh3 {[%emt 0:00:05]} Qd7+ {[%emt 0:00:22]} 53. Qe6 {[%emt 0:00:10]} Qd8 {[%emt 0:00:43]} 54. Qf7 {[%emt 0:01:15]} Qc8+ {[%emt 0:00:29]} 55. Qf5 {[%emt 0:01:00]} Qc7 {[%emt 0:00:31]} 56. h6 {[%emt 0:00:22]} Qc1 {[%emt 0:00:26]} 57. Qxh7 {[%emt 0:00:26]} Qh1+ {[%emt 0:00:03]} 58. Kg3 {[%emt 0:00:09]} Qe1+ {[%emt 0:00:58]} 59. Kg4 {[%emt 0:00:05]} Qf1 {[%emt 0:00:31]} 60. g3 {[%emt 0:00:08]} Ke3 {[%emt 0:00:23]} 61. Qf5 {[%emt 0:00:27]} Qh1 {[%emt 0:00:37]} 62. h7 {[%emt 0:00:15]} 1-0

[Event "15th Lazio Festival 2022"]
[Site "Rome"]
[Date "2022.01.03"]
[Round "3.5"]
[White "Castelfranchi, Carlo"]
[Black "Brozzi, Danilo"]
[Result "1/2-1/2"]
[ECO "C42"]
[WhiteElo "1914"]
[BlackElo "1728"]
[Annotator "ChessBase"]
[PlyCount "51"]
[EventDate "2022.01.02"]
[EventType "swiss"]
[EventCountry "ITA"]
[SourceTitle "playchess.com"]
[Source "ChessBase"]
[SourceQuality "1"]
[TimeControl "5400+30"]

1. e4 {[%emt 0:00:05]} e5 {[%emt 0:00:15]} 2. Nf3 {[%emt 0:00:11]} Nf6 {[%emt 0:00:04]} 3. Nxe5 {[%emt 0:00:42]} d6 {[%emt 0:00:04]} 4. Nf3 {[%emt 0:00:21]} Nxe4 {[%emt 0:00:05]} 5. d4 {[%emt 0:01:11]} d5 {[%emt 0:00:16]} 6. Bd3 {[%emt 0:00:08]} Bf5 {[%emt 0:01:50]} 7. O-O {[%emt 0:00:58]} Be7 {[%emt 0:00:19]} 8. Re1 {[%emt 0:00:41]} O-O {[%emt 0:00:14]} 9. c4 {[%emt 0:05:11]} c6 {[%emt 0:00:28]} 10. cxd5 {[%emt 0:13:55]} cxd5 {[%emt 0:00:03]} 11. Qb3 {[%emt 0:01:01]} Nc6 {[%emt 0:17:50]} 12. Nc3 {[%emt 0:07:32]} Bb4 {[%emt 0:04:55]} 13. a3 {[%emt 0:13:59]} Bxc3 {[%emt 0:02:36]} 14. bxc3 {[%emt 0:00:02]} Na5 {[%emt 0:00:51]} 15. Qb4 {[%emt 0:06:20]} Rc8 {[%emt 0:00:57]} 16. Bf4 {[%emt 0:07:04]} b6 {[%emt 0:05:18]} 17. Rac1 {[%emt 0:06:23]} Nc4 {[%emt 0:03:22]} 18. Bxe4 {[%emt 0:15:15]} Bxe4 {[%emt 0:00:40]} 19. Nd2 {[%emt 0:04:45]} Bd3 {[%emt 0:06:25]} 20. Nxc4 {[%emt 0:02:16]} Bxc4 {[%emt 0:01:33]} 21. Qe7 {[%emt 0:03:20]} a5 {[%emt 0:02:31]} 22. Bd6 {[%emt 0:02:54]} Qxe7 {[%emt 0:00:08]} 23. Rxe7 {[%emt 0:00:26]} Rfe8 {[%emt 0:01:09]} 24. Rce1 {[%emt 0:01:06]} Rxe7 {[%emt 0:00:09]} 25. Rxe7 {[%emt 0:00:46]} b5 {[%emt 0:00:07]} 26. Bc5 {[%emt 0:02:34]} 1/2-1/2

[Event "15th Lazio Festival 2022"]
[Site "Rome"]
[Date "2022.01.03"]
[Round "3.6"]
[White "Giri, Andrea"]
[Black "Buffoni, Luca"]
[Result "1-0"]
[ECO "A80"]
[WhiteElo "1560"]
[BlackElo "1778"]
[Annotator "NA"]
[PlyCount "85"]
[EventDate "2022.01.02"]
[EventType "swiss"]
[EventCountry "ITA"]
[SourceTitle "playchess.com"]
[Source "ChessBase"]
[SourceQuality "1"]
[TimeControl "5400+30"]

1. d4 {[%emt 1:31:00]} f5 {[%emt 1:31:00]} 2. g4 {[%emt 0:00:30]} fxg4 {[%emt 0:00:30]} 3. h3 {[%emt 0:00:30]} g3 {[%emt 0:00:30]} 4. fxg3 {[%emt 0:00:30]} d5 {[%emt 0:00:30]} 5. Bg2 {[%emt 0:00:30]} Nf6 {[%emt 0:00:30]} 6. Nc3 {[%emt 0:00:30]} Bf5 {[%emt 0:00:30]} 7. Bg5 {[%emt 0:00:30]} Nbd7 {[%emt 0:00:30]} 8. Nxd5 {[%emt 0:00:30]} c6 {[%emt 0:00:30]} 9. Nxf6+ {[%emt 0:00:30]} Nxf6 {[%emt 0:00:30]} 10. Bxf6 {[%emt 0:00:30]} exf6 {[%emt 0:00:30]} 11. e4 {[%emt 0:00:30]} Bg6 {[%emt 0:00:30]} 12. Ne2 {[%emt 0:00:30]} Bd6 {[%emt 0:00:30]} 13. Qd3 {[%emt 0:00:30]} Qc7 {[%emt 0:00:30]} 14. O-O-O {[%emt 0:00:30]} O-O {[%emt 0:00:30]} 15. h4 {[%emt 0:00:30]} Qa5 {[%emt 0:00:30]} 16. Nc3 {[%emt 0:00:30]} b5 {[%emt 0:00:30]} 17. h5 {[%emt 0:00:30]} Bf7 {[%emt 0:00:30]} 18. h6 {[%emt 0:00:30]} g6 {[%emt 0:00:30]} 19. e5 {[%emt 0:00:30]} fxe5 {[%emt 0:00:30]} 20. Bxc6 {[%emt 0:00:30]} Bc4 {[%emt 0:00:30]} 21. Qe4 {[%emt 0:00:30]} b4 {[%emt 0:00:30]} 22. Bd5+ {[%emt 0:00:30]} Bxd5 {[%emt 0:00:30]} 23. Qxd5+ {[%emt 0:00:30]} Qxd5 {[%emt 0:00:30]} 24. Nxd5 {[%emt 0:00:30]} exd4 {[%emt 0:00:30]} 25. Rxd4 {[%emt 0:00:30]} a5 {[%emt 0:00:30]} 26. g4 {[%emt 0:00:30]} Rac8 {[%emt 0:00:30]} 27. g5 {[%emt 0:00:30]} Be5 {[%emt 0:00:30]} 28. Re4 {[%emt 0:00:30]} Bd6 {[%emt 0:00:30]} 29. Re6 {[%emt 0:00:30]} Bf4+ {[%emt 0:00:30]} 30. Nxf4 {[%emt 0:00:30]} Rxf4 {[%emt 0:00:30]} 31. Rhe1 {[%emt 0:00:30]} Rf2 {[%emt 0:00:30]} 32. Re8+ {[%emt 0:00:30]} Rxe8 {[%emt 0:00:30]} 33. Rxe8+ {[%emt 0:00:30]} Kf7 {[%emt 0:00:30]} 34. Rh8 {[%emt 0:00:30]} Rg2 {[%emt 0:00:30]} 35. Rxh7+ {[%emt 0:00:30]} Kf8 {[%emt 0:00:30]} 36. Rh8+ {[%emt 0:00:30]} Kf7 {[%emt 0:00:30]} 37. Ra8 {[%emt 0:00:30]} Rh2 {[%emt 0:00:30]} 38. Ra7+ {[%emt 0:00:30]} Ke6 {[%emt 0:00:30]} 39. Rxa5 {[%emt 0:00:30]} Rg2 {[%emt 0:00:30]} 40. b3 {[%emt 0:00:30]} Rg4 {[%emt 0:00:30]} 41. Kb2 {[%emt 0:00:30]} Rg3 {[%emt 0:00:30]} 42. Rb5 {[%emt 0:00:30]} Rg4 {[%emt 0:00:30]} 43. a4 {[%emt 0:00:30]} 1-0

[Event "15th Lazio Festival 2022"]
[Site "Rome"]
[Date "2022.01.04"]
[Round "4.5"]
[White "Pastore, Cosmas"]
[Black "Di Maulo, Alessandra"]
[Result "0-1"]
[ECO "C50"]
[WhiteElo "1807"]
[BlackElo "1810"]
[Annotator "NA RC"]
[PlyCount "84"]
[EventDate "2022.01.02"]
[EventType "swiss"]
[EventCountry "ITA"]
[SourceTitle "playchess.com"]
[Source "ChessBase"]
[SourceQuality "1"]
[TimeControl "5400+30"]

1. e4 {[%emt 0:08:56]} e5 {[%emt 0:00:07]} 2. Bc4 {[%emt 0:00:09]} Nf6 {[%emt 0:00:24]} 3. d3 {[%emt 0:00:22]} Bc5 {[%emt 0:02:13]} 4. Nc3 {[%emt 0:00:36]} d6 {[%emt 0:02:03]} 5. Nf3 {[%emt 0:01:02]} h6 {[%emt 0:00:11]} 6. h3 {[%emt 0:00:07]} Nc6 {[%emt 0:00:32]} 7. O-O {[%emt 0:00:35]} O-O {[%emt 0:00:06]} 8. Ne2 {[%emt 0:03:41]} Be6 $11 {[%emt 0:08:31]} 9. Ng3 {[%emt 0:04:27]} Bxc4 {[%emt 0:10:52]} 10. dxc4 {[%emt 0:00:28]} Ne7 {[%emt 0:02:20]} 11. Nh4 {[%emt 0:08:17]} Kh7 {[%emt 0:15:23]} 12. Be3 {[%emt 0:08:20]} Bb6 {[%emt 0:06:59]} 13. Qd2 {[%emt 0:16:26]} Qd7 {[%emt 0:11:38]} 14. Rae1 {[%emt 0:10:17]} Ng6 {[%emt 0:00:48]} 15. Nxg6 {[%emt 0:02:07]} fxg6 {[%emt 0:01:54]} 16. c3 {[%emt 0:04:39]} Qe6 {[%emt 0:04:42]} 17. b3 {[%emt 0:01:19]} Rae8 {[%emt 0:04:08]} 18. Rd1 {[%emt 0:07:35]} Rd8 {[%emt 0:08:43]} 19. Qe2 {[%emt 0:00:57]} Nd7 {[%emt 0:01:36]} 20. Rd2 {[%emt 0:01:15]} Qf7 {[%emt 0:05:02]} 21. Rfd1 {[%emt 0:00:49]} Bxe3 {[%emt 0:04:13]} 22. Qxe3 {[%emt 0:00:32]} a6 {[%emt 0:00:03]} 23. f3 {[%emt 0:02:21]} Nc5 {[%emt 0:01:10]} 24. Ne2 {[%emt 0:01:35]} Ne6 {[%emt 0:01:00]} 25. b4 {[%emt 0:02:08]} Qf6 {[%emt 0:08:22]} 26. a4 {[%emt 0:02:21]} Ra8 {[%emt 0:00:00]} 27. c5 {[%emt 0:00:50]} dxc5 {[%emt 0:00:00]} 28. bxc5 {[%emt 0:00:13]} Rad8 {[%emt 0:00:00]} 29. Rd5 {[%emt 0:00:35]} c6 {[%emt 0:00:16]} 30. Rd6 {[%emt 0:00:32]} Qe7 {[%emt 0:00:04]} 31. a5 {[%emt 0:02:05]} Qc7 {[%emt 0:00:46]} 32. Rb1 {[%emt 0:03:38]} Rfe8 {[%emt 0:01:42]} 33. Rb6 {[%emt 0:02:29]} Re7 {[%emt 0:00:35]} 34. Rxd8 {[%emt 0:04:02]} Qxd8 {[%emt 0:00:01]} 35. Kf2 {[%emt 0:00:33]} Rd7 {[%emt 0:00:07]} 36. Rb3 {[%emt 0:01:40]} Rd3 {[%emt 0:00:18]} 37. Qc1 {[%emt 0:00:11]} Nxc5 {[%emt 0:00:06]} 38. Rb6 {[%emt 0:00:23]} Rd2 {[%emt 0:01:11]} 39. Qa3 {[%emt 0:00:11]} Qd3 {[%emt 0:00:22]} 40. Qxc5 {[%emt 0:00:18]} Qxe2+ {[%emt 0:00:06]} 41. Kg3 {[%emt 0:00:18]} Qxg2+ {[%emt 0:00:04]} 42. Kh4 {[%emt 0:00:08]} Qg5# {[%emt 0:00:05]} 0-1

[Event "15th Lazio Festival 2022"]
[Site "Rome"]
[Date "2022.01.04"]
[Round "4.6"]
[White "Brozzi, Danilo"]
[Black "Silici, Renato"]
[Result "1/2-1/2"]
[ECO "A62"]
[WhiteElo "1728"]
[BlackElo "1727"]
[Annotator "NA RC"]
[PlyCount "80"]
[EventDate "2022.01.02"]
[EventType "swiss"]
[EventCountry "ITA"]
[SourceTitle "playchess.com"]
[Source "ChessBase"]
[SourceQuality "1"]
[TimeControl "5400+30"]

1. d4 {[%emt 1:31:00]} Nf6 2. c4 c5 3. d5 e6 4. Nc3 exd5 5. cxd5 d6 6. g3 g6 7. Bg2 Bg7 8. Nf3 O-O 9. O-O Re8 10. Re1 {[%emt 0:04:30]} a6 {[%emt 1:35:30]} 11. e4 {[%emt 0:00:30]} Bg4 {[%emt 0:00:30]} 12. h3 {[%emt 0:00:30]} Bxf3 {[%emt 0:00:30]} 13. Qxf3 {[%emt 0:00:30]} Nbd7 {[%emt 0:00:30]} 14. Qe2 {[%emt 0:00:30]} b5 {[%emt 0:00:30]} 15. Qf1 {[%emt 0:00:30]} c4 {[%emt 0:00:30]} 16. a4 {[%emt 0:00:30]} b4 {[%emt 0:00:30]} 17. Na2 {[%emt 0:00:30]} b3 {[%emt 0:00:30]} 18. Nb4 {[%emt 0:00:30]} Ne5 {[%emt 0:00:30]} 19. a5 {[%emt 0:00:30]} Qc7 {[%emt 0:00:30]} 20. Bd2 {[%emt 0:00:30]} Qc5 {[%emt 0:00:30]} 21. Bc3 {[%emt 0:00:30]} Nfd7 {[%emt 0:00:30]} 22. Kh2 {[%emt 0:00:30]} g5 {[%emt 0:00:30]} 23. f4 {[%emt 0:00:30]} gxf4 {[%emt 0:00:30]} 24. gxf4 {[%emt 0:00:30]} Ng6 {[%emt 0:00:30]} 25. Nc6 {[%emt 0:00:30]} Bh6 {[%emt 0:00:30]} 26. f5 {[%emt 0:00:30]} Nge5 {[%emt 0:00:30]} 27. Bb4 {[%emt 0:00:30]} Qb5 {[%emt 0:00:30]} 28. Bxd6 {[%emt 0:00:30]} Nxc6 {[%emt 0:00:30]} 29. dxc6 {[%emt 0:00:30]} Ne5 {[%emt 0:00:30]} 30. Qf2 {[%emt 0:00:30]} f6 {[%emt 0:00:30]} 31. Qg3+ {[%emt 0:00:30]} Kf7 {[%emt 0:00:30]} 32. Qh4 {[%emt 0:00:30]} Bg7 {[%emt 0:00:30]} 33. Qh5+ {[%emt 0:00:30]} Kg8 {[%emt 0:00:30]} 34. Qe2 {[%emt 0:00:30]} Qxc6 {[%emt 0:00:30]} 35. Bxe5 {[%emt 0:00:30]} Rxe5 {[%emt 0:00:30]} 36. Rec1 {[%emt 0:00:30]} Rc8 {[%emt 0:00:30]} 37. Rc3 {[%emt 0:00:30]} Qc7 {[%emt 0:00:30]} 38. Kh1 {[%emt 0:00:30]} Rxa5 {[%emt 0:00:30]} 39. Rac1 {[%emt 0:00:30]} Rc5 {[%emt 0:00:30]} 40. Bf1 {[%emt 0:00:30]} Qe5 {[%emt 0:00:30]} 1/2-1/2

[Event "15th Lazio Festival 2022"]
[Site "Rome"]
[Date "2022.01.05"]
[Round "5.2"]
[White "Maione, Melissa"]
[Black "Maxion, Dirk"]
[Result "1-0"]
[ECO "B99"]
[WhiteElo "1866"]
[BlackElo "2089"]
[Annotator "NA"]
[PlyCount "75"]
[EventDate "2022.01.02"]
[EventType "swiss"]
[EventCountry "ITA"]
[SourceTitle "playchess.com"]
[Source "ChessBase"]
[SourceQuality "1"]
[TimeControl "5400+30"]

1. e4 {[%emt 0:00:01]} c5 {[%emt 0:00:12]} 2. Nf3 {[%emt 0:00:08]} d6 {[%emt 0:01:09]} 3. d4 {[%emt 0:00:12]} cxd4 {[%emt 0:00:09]} 4. Nxd4 {[%emt 0:00:17]} Nf6 {[%emt 0:00:19]} 5. Nc3 {[%emt 0:00:26]} a6 {[%emt 0:02:46]} 6. Bg5 {[%emt 0:01:13]} e6 {[%emt 0:00:12]} 7. Qf3 {[%emt 0:04:05]} Be7 {[%emt 0:01:41]} 8. Qg3 {[%emt 0:04:00]} Qc7 {[%emt 0:06:49]} 9. O-O-O {[%emt 0:01:29]} Nbd7 {[%emt 0:01:57]} 10. f4 {[%emt 0:04:27]} h6 {[%emt 0:05:28]} 11. Bxf6 {[%emt 0:03:00]} Bxf6 {[%emt 0:04:58]} 12. f5 {[%emt 0:03:17]} Ne5 {[%emt 0:03:29]} 13. Be2 {[%emt 0:02:17] [#]} O-O $1 {[%emt 0:00:39]} 14. h4 {[%emt 0:03:09]} Bd7 {[%emt 0:00:43]} 15. Qh3 {[%emt 0:01:28]} b5 {[%emt 0:03:00]} 16. a3 {[%emt 0:02:55]} (16. g4 $11 {remains equal.}) 16... Rab8 {[%emt 0:02:27]} (16... Nc4 $17 17. fxe6 fxe6) 17. g4 {[%emt 0:01:35]} ({White should try} 17. fxe6 $15 fxe6 18. Nxe6) 17... b4 {[%emt 0:00:43]} ({Black should play} 17... Nc4 18. g5 Be5 19. gxh6 Nxb2 20. hxg7 (20. Kxb2 $2 b4 $19) 20... Rfc8 21. fxe6 (21. Kxb2 $2 b4 $19) 21... Bxe6 22. Nxe6 Qxc3 23. Qxc3 Rxc3 24. Kxb2 fxe6) 18. axb4 {[%emt 0:06:05] [#]} Rxb4 $2 {[%emt 0:00:16]} (18... Nc6 $1 $17 {[%cal Rc6d4] keeps the pressure on.} 19. Nxc6 Qxc6) 19. Na2 $17 {[%emt 0:00:10]} (19. g5 $1 $16 {[%cal Rg5f6] and life is bright.} Qb6 20. gxf6 Rxd4 21. h5 Rxd1+ 22. Rxd1) 19... Rb6 {[%emt 0:17:00]} 20. g5 {[%emt 0:05:34]} hxg5 {[%emt 0:00:46]} 21. hxg5 {[%emt 0:03:08]} Bxg5+ {[%emt 0:00:13]} 22. Kb1 {[%emt 0:00:04]} Bh6 {[%emt 0:02:37]} 23. Rdg1 {[%emt 0:00:09]} Rfb8 {[%emt 0:01:49]} 24. b3 {[%emt 0:01:25]} Kf8 {[%emt 0:04:25]} 25. fxe6 {[%emt 0:01:25]} Bc8 {[%emt 0:01:03]} 26. Qg2 {[%emt 0:01:52]} Ng6 {[%emt 0:06:42]} 27. exf7 {[%emt 0:02:48]} Nf4 {[%emt 0:00:41]} 28. Qf1 {[%emt 0:00:15]} Qxf7 {[%emt 0:00:31]} 29. Bc4 {[%emt 0:00:35]} d5 {[%emt 0:02:45]} 30. exd5 {[%emt 0:00:38]} Rd6 {[%emt 0:03:18]} 31. Nc3 {[%emt 0:11:43]} Rg6 {[%emt 0:00:54]} 32. Rxg6 {[%emt 0:02:30]} Qxg6 {[%emt 0:02:35]} 33. Nc6 {[%emt 0:01:30]} Rb7 {[%emt 0:01:48]} 34. Qf2 {[%emt 0:02:49]} Bf5 {[%emt 0:07:03]} 35. Qc5+ {[%emt 0:00:36]} Kg8 {[%emt 0:00:11]} 36. d6+ {[%emt 0:02:11]} Kh8 {[%emt 0:00:06]} 37. d7 {[%emt 0:00:58]} Bxc2+ {[%emt 0:01:51]} 38. Ka1 {[%emt 0:00:08]} 1-0

[Event "15th Lazio Festival 2022"]
[Site "Rome"]
[Date "2022.01.05"]
[Round "5.3"]
[White "Di Maulo, Alessandra"]
[Black "Lami, Damiano"]
[Result "0-1"]
[ECO "B01"]
[WhiteElo "1810"]
[BlackElo "2019"]
[Annotator "NA"]
[PlyCount "117"]
[EventDate "2022.01.02"]
[EventType "swiss"]
[EventCountry "ITA"]
[SourceTitle "playchess.com"]
[Source "ChessBase"]
[SourceQuality "1"]
[TimeControl "5400+30"]

1. e4 {[%emt 0:00:02]} d5 {[%emt 0:00:05]} 2. exd5 Qxd5 {[%emt 0:00:05]} 3. Nc3 {[%emt 0:00:13]} Qa5 {[%emt 0:00:05]} 4. d4 {[%emt 0:00:13]} Nf6 {[%emt 0:00:06]} 5. Nf3 {[%emt 0:00:06]} Bf5 {[%emt 0:00:17]} 6. Bc4 {[%emt 0:00:47]} e6 {[%emt 0:00:09]} 7. O-O {[%emt 0:00:07]} c6 {[%emt 0:01:21]} 8. h3 {[%emt 0:03:21]} Bd6 {[%emt 0:02:52]} 9. Bd2 {[%emt 0:04:04]} Qc7 {[%emt 0:01:56]} 10. Re1 {[%emt 0:01:44]} O-O {[%emt 0:01:14]} 11. Nh4 {[%emt 0:18:52]} Bg6 {[%emt 0:01:00]} 12. Nxg6 {[%emt 0:00:43]} hxg6 {[%emt 0:00:05]} 13. Ne4 {[%emt 0:00:32]} Bh2+ {[%emt 0:09:00]} 14. Kh1 {[%emt 0:00:56]} Bf4 {[%emt 0:00:11]} 15. Nxf6+ {[%emt 0:09:58]} gxf6 {[%emt 0:00:09]} 16. Bc3 {[%emt 0:00:26]} Bh6 {[%emt 0:03:44]} 17. Qf3 {[%emt 0:04:11]} Nd7 {[%emt 0:01:43]} 18. Rad1 {[%emt 0:01:27]} Nb6 $11 {[%emt 0:05:01]} 19. Bb3 {[%emt 0:10:06]} Qf4 {[%emt 0:02:50]} 20. Qe2 {[%emt 0:01:48]} Nd5 {[%emt 0:00:30]} 21. Bd2 {[%emt 0:00:42]} Qh4 {[%emt 0:00:06]} 22. Bxh6 {[%emt 0:04:11]} Qxh6 {[%emt 0:00:17]} 23. Qf3 {[%emt 0:02:11]} Kg7 {[%emt 0:07:43]} 24. c3 {[%emt 0:02:00]} Rfd8 {[%emt 0:01:06]} 25. Kg1 {[%emt 0:10:07]} Rd7 {[%emt 0:05:04]} 26. Bc2 {[%emt 0:14:29]} Rad8 {[%emt 0:00:22]} 27. Kh1 {[%emt 0:01:38]} Qf4 {[%emt 0:01:12]} 28. Qxf4 {[%emt 0:00:14]} Nxf4 {[%emt 0:00:04]} 29. Kh2 {[%emt 0:00:27]} Nd5 {[%emt 0:02:21]} 30. a4 {[%emt 0:02:36]} b6 {[%emt 0:00:29]} 31. Kg1 {[%emt 0:02:31]} f5 {[%emt 0:00:29]} 32. Kf1 {[%emt 0:01:03]} g5 {[%emt 0:03:33]} 33. Re5 {[%emt 0:02:41]} Kf6 {[%emt 0:00:54]} 34. Rde1 {[%emt 0:00:55]} Rh8 {[%emt 0:01:13]} 35. Bd1 {[%emt 0:01:46]} Nf4 {[%emt 0:00:15]} 36. R5e3 {[%emt 0:00:46]} g4 {[%emt 0:00:46]} 37. Bc2 {[%emt 0:00:32]} Rdd8 {[%emt 0:00:35]} 38. Rg3 {[%emt 0:00:33]} Rh4 {[%emt 0:01:09]} 39. a5 {[%emt 0:00:25]} bxa5 {[%emt 0:01:34]} 40. Ra1 {[%emt 0:00:07]} Rd5 {[%emt 0:00:13]} 41. Ba4 {[%emt 0:00:56]} Rd8 {[%emt 0:02:32]} 42. Bxc6 {[%emt 0:00:23]} Rb8 {[%emt 0:00:06]} 43. Rxa5 {[%emt 0:00:38]} Rxb2 {[%emt 0:00:12]} 44. Ra1 {[%emt 0:00:06]} gxh3 {[%emt 0:00:17]} 45. gxh3 {[%emt 0:00:05]} Nxh3 {[%emt 0:00:10]} 46. Rf3 {[%emt 0:01:01]} a5 {[%emt 0:00:49]} 47. Rxa5 {[%emt 0:00:26]} Rb1+ {[%emt 0:00:07]} 48. Kg2 {[%emt 0:00:51]} Nf4+ {[%emt 0:00:23]} 49. Rxf4 {[%emt 0:00:26]} Rxf4 {[%emt 0:00:06]} 50. Ra2 {[%emt 0:00:34]} Rc1 {[%emt 0:00:23]} 51. Be8 {[%emt 0:00:26]} Ke7 {[%emt 0:00:21]} 52. Bb5 {[%emt 0:00:24]} Rxc3 {[%emt 0:00:15]} 53. Ra7+ {[%emt 0:00:06]} Kf8 {[%emt 0:00:14]} 54. Ra8+ {[%emt 0:00:34]} Kg7 {[%emt 0:00:07]} 55. Rd8 {[%emt 0:00:59]} Rc2 {[%emt 0:00:10]} 56. d5 {[%emt 0:00:31]} Rcxf2+ {[%emt 0:00:33]} 57. Kg1 {[%emt 0:00:06]} Rb2 {[%emt 0:00:32]} 58. dxe6 {[%emt 0:00:56]} fxe6 {[%emt 0:01:10]} 59. Bf1 {[%emt 0:00:28]} 0-1

[Event "15th Lazio Festival 2022"]
[Site "Rome"]
[Date "2022.01.05"]
[Round "5.5"]
[White "Silici, Renato"]
[Black "Agostini, Maurizio"]
[Result "1-0"]
[ECO "E14"]
[WhiteElo "1727"]
[BlackElo "1972"]
[Annotator "ChessBase"]
[PlyCount "103"]
[EventDate "2022.01.02"]
[EventType "swiss"]
[EventCountry "ITA"]
[SourceTitle "playchess.com"]
[Source "ChessBase"]
[SourceQuality "1"]
[TimeControl "5400+30"]

1. c4 {[%emt 0:00:01]} e6 {[%emt 0:00:06]} 2. Nc3 {[%emt 0:00:13]} d5 {[%emt 0:00:04]} 3. d4 {[%emt 0:00:16]} Nf6 {[%emt 0:00:04]} 4. Nf3 {[%emt 0:00:16]} Be7 {[%emt 0:00:11]} 5. e3 {[%emt 0:00:26]} O-O {[%emt 0:00:18]} 6. Bd3 {[%emt 0:00:45]} b6 {[%emt 0:01:44]} 7. cxd5 {[%emt 0:00:28]} exd5 {[%emt 0:00:07]} 8. O-O {[%emt 0:00:41]} Bb7 {[%emt 0:00:26]} 9. Bd2 {[%emt 0:01:18]} Nbd7 {[%emt 0:00:48]} 10. Rc1 {[%emt 0:01:05]} Ne4 {[%emt 0:01:06]} 11. Be1 {[%emt 0:02:30]} Rc8 {[%emt 0:01:50]} 12. Qe2 {[%emt 0:00:52]} Ndf6 {[%emt 0:11:37]} 13. Ba6 {[%emt 0:02:31]} Bxa6 {[%emt 0:00:49]} 14. Qxa6 {[%emt 0:00:07]} c5 {[%emt 0:07:34]} 15. Qa4 {[%emt 0:05:02]} Bd6 {[%emt 0:06:37]} 16. Rd1 {[%emt 0:10:17]} Qe7 {[%emt 0:05:07]} 17. dxc5 {[%emt 0:09:19]} Nxc5 {[%emt 0:01:17]} 18. Qh4 {[%emt 0:02:55]} Rfd8 {[%emt 0:02:36]} 19. Nb5 {[%emt 0:04:18]} Bb8 {[%emt 0:00:36]} 20. Nfd4 {[%emt 0:03:36]} Qe4 {[%emt 0:04:41]} 21. Qg5 {[%emt 0:04:13]} h6 {[%emt 0:08:23]} 22. Qf5 {[%emt 0:01:10]} Ng4 {[%emt 0:11:42]} 23. h3 {[%emt 0:11:31]} Nh2 {[%emt 0:02:26]} 24. Nxa7 {[%emt 0:00:37]} Rc7 {[%emt 0:12:00]} 25. Nac6 {[%emt 0:04:24]} Rxc6 {[%emt 0:14:26]} 26. Nxc6 {[%emt 0:00:44]} Qxf5 {[%emt 0:06:19]} 27. Ne7+ {[%emt 0:00:13]} Kh7 {[%emt 0:00:16]} 28. Nxf5 {[%emt 0:00:14]} Nxf1 {[%emt 0:00:04]} 29. Kxf1 {[%emt 0:00:24]} Be5 {[%emt 0:00:33]} 30. b3 {[%emt 0:01:22]} Ne4 {[%emt 0:00:25]} 31. Ne7 {[%emt 0:01:16]} Rd7 {[%emt 0:01:05]} 32. Nxd5 {[%emt 0:02:00]} Rd6 {[%emt 0:00:30]} 33. f3 {[%emt 0:02:06]} Ng3+ {[%emt 0:01:13]} 34. Bxg3 {[%emt 0:00:23]} Bxg3 {[%emt 0:00:00]} 35. Ke2 {[%emt 0:00:50]} Be5 {[%emt 0:00:16]} 36. e4 {[%emt 0:00:46]} Rc6 {[%emt 0:00:34]} 37. Ke3 {[%emt 0:01:05]} g5 {[%emt 0:00:30]} 38. Kd3 {[%emt 0:01:34]} b5 {[%emt 0:00:15]} 39. Rd2 {[%emt 0:00:23]} Rc1 {[%emt 0:00:49]} 40. Rc2 {[%emt 0:01:22]} Rd1+ {[%emt 0:00:15]} 41. Ke2 {[%emt 0:00:58]} Rg1 {[%emt 0:00:04]} 42. Ne3 {[%emt 0:01:04]} Bd4 {[%emt 0:00:49]} 43. Kd3 {[%emt 0:00:47]} Bb6 {[%emt 0:00:30]} 44. Nd5 {[%emt 0:00:58]} Ba5 {[%emt 0:00:53]} 45. b4 {[%emt 0:00:31]} Bd8 {[%emt 0:00:30]} 46. Kd4 {[%emt 0:00:22]} Kg6 {[%emt 0:00:24]} 47. Kc5 {[%emt 0:00:40]} f5 {[%emt 0:00:28]} 48. Kxb5 {[%emt 0:00:30]} fxe4 {[%emt 0:00:23]} 49. fxe4 {[%emt 0:00:36]} Re1 {[%emt 0:00:37]} 50. Rc8 {[%emt 0:00:22]} Bf6 {[%emt 0:00:14]} 51. Rc6 {[%emt 0:00:24]} Re2 {[%emt 0:00:56]} 52. Nxf6 {[%emt 0:01:00]} 1-0